[Event "November 21 Early 2023"]
[Site "https://www.chess.com"]
[Date "2023.11.21"]
[Round "3"]
[White "Cardozo Munar, Carlos Eduardo"]
[Black "Jesseinkman"]
[Result "1-0"]
[Board "203"]
[TimeControl "180+1"]
[WhiteFideId "4409477"]
[WhiteElo "2067"]
[BlackElo "2481"]
[WhiteTeam "COL"]
[WhiteClock "0:02:13"]
[BlackClock "0:00:59"]

1. d4 {[%clk 0:02:59]}  d5 {[%clk 0:02:26]} 2. c3 {[%clk 0:02:57]}  e6 {[%clk 0:02:25]} 3. g3 {[%clk 0:02:57]}  Nf6 {[%clk 0:02:23]} 4. Bg2 {[%clk 0:02:58]}  Be7 {[%clk 0:02:22]} 5. Nd2 {[%clk 0:02:58]}  O-O {[%clk 0:02:23]} 6. e4 {[%clk 0:02:59]}  dxe4 {[%clk 0:02:23]} 7. Nxe4 {[%clk 0:03:00]}  Nxe4 {[%clk 0:02:23]} 8. Bxe4 {[%clk 0:03:00]}  Nd7 {[%clk 0:02:23]} 9. Ne2 {[%clk 0:03:01]}  Nf6 {[%clk 0:02:23]} 10. Bg2 {[%clk 0:03:02]}  c5 {[%clk 0:02:17]} 11. O-O {[%clk 0:03:01]}  cxd4 {[%clk 0:02:18]} 12. Nxd4 {[%clk 0:03:01]}  e5 {[%clk 0:02:08]} 13. Nf3 {[%clk 0:02:58]}  e4 {[%clk 0:01:53]} 14. Qxd8 {[%clk 0:02:56]}  Rxd8 {[%clk 0:01:54]} 15. Ng5 {[%clk 0:02:57]}  Bf5 {[%clk 0:01:49]} 16. Re1 {[%clk 0:02:55]}  h6 {[%clk 0:01:46]} 17. Nxe4 {[%clk 0:02:54]}  Nxe4 {[%clk 0:01:46]} 18. Bxe4 {[%clk 0:02:54]}  Bxe4 {[%clk 0:01:47]} 19. Rxe4 {[%clk 0:02:55]}  Rd1+ {[%clk 0:01:48]} 20. Kg2 {[%clk 0:02:55]}  Bg5 {[%clk 0:01:40]} 21. f4 {[%clk 0:02:51]}  Bf6 {[%clk 0:01:40]} 22. Kf2 {[%clk 0:02:36]}  Rad8 {[%clk 0:01:39]} 23. Re1 {[%clk 0:02:32]}  Be7 {[%clk 0:01:13]} 24. Be3 {[%clk 0:02:29]}  Rxa1 {[%clk 0:01:09]} 25. Rxa1 {[%clk 0:02:29]}  b5 {[%clk 0:01:09]} 26. Ke2 {[%clk 0:02:24]}  b4 {[%clk 0:01:09]} 27. Bxa7 {[%clk 0:02:20]}  bxc3 {[%clk 0:01:09]} 28. bxc3 {[%clk 0:02:21]}  Bf6 {[%clk 0:00:59]} 29. Bd4 {[%clk 0:02:13]} 1-0

[Event "November 21 Early 2023"]
[Site "https://www.chess.com"]
[Date "2023.11.21"]
[Round "3"]
[White "Jamal-Jamal-Jamal"]
[Black "cycygogne"]
[Result "1/2-1/2"]
[Board "204"]
[TimeControl "180+1"]
[WhiteElo "2475"]
[BlackElo "2267"]
[WhiteClock "0:00:04"]
[BlackClock "0:00:13"]

1. d4 {[%clk 0:02:55]}  Nf6 {[%clk 0:02:58]} 2. c4 {[%clk 0:02:55]}  e6 {[%clk 0:02:57]} 3. Nf3 {[%clk 0:02:55]}  b6 {[%clk 0:02:58]} 4. Nc3 {[%clk 0:02:54]}  Bb4 {[%clk 0:02:57]} 5. Qc2 {[%clk 0:02:52]}  Bb7 {[%clk 0:02:55]} 6. Bg5 {[%clk 0:02:41]}  O-O {[%clk 0:02:46]} 7. e3 {[%clk 0:02:40]}  h6 {[%clk 0:02:41]} 8. Bh4 {[%clk 0:02:39]}  d5 {[%clk 0:02:24]} 9. a3 {[%clk 0:02:34]}  Be7 {[%clk 0:02:24]} 10. cxd5 {[%clk 0:02:27]}  Nxd5 {[%clk 0:02:19]} 11. Bxe7 {[%clk 0:02:28]}  Qxe7 {[%clk 0:02:15]} 12. Be2 {[%clk 0:02:26]}  Nd7 {[%clk 0:02:02]} 13. Nxd5 {[%clk 0:02:25]}  Bxd5 {[%clk 0:02:01]} 14. e4 {[%clk 0:02:11]}  Bb7 {[%clk 0:01:54]} 15. O-O {[%clk 0:02:10]}  c5 {[%clk 0:01:49]} 16. Rad1 {[%clk 0:02:10]}  cxd4 {[%clk 0:01:42]} 17. Nxd4 {[%clk 0:02:11]}  Rac8 {[%clk 0:01:38]} 18. Qb1 {[%clk 0:02:05]}  Nc5 {[%clk 0:01:37]} 19. Bf3 {[%clk 0:02:04]}  Rfd8 {[%clk 0:01:13]} 20. b4 {[%clk 0:02:03]}  Na4 {[%clk 0:01:08]} 21. Qa1 {[%clk 0:01:39]}  Nc3 {[%clk 0:00:52]} 22. Rd3 {[%clk 0:01:39]}  Nxe4 {[%clk 0:00:49]} 23. Rfd1 {[%clk 0:01:31]}  Qf6 {[%clk 0:00:20]} 24. h3 {[%clk 0:00:59]}  Bd5 {[%clk 0:00:20]} 25. Nb5 {[%clk 0:00:52]}  a6 {[%clk 0:00:15]} 26. Qxf6 {[%clk 0:00:46]}  Nxf6 {[%clk 0:00:16]} 27. Nc3 {[%clk 0:00:40]}  Kf8 {[%clk 0:00:15]} 28. a4 {[%clk 0:00:29]}  Ke7 {[%clk 0:00:14]} 29. Bxd5 {[%clk 0:00:29]}  Nxd5 {[%clk 0:00:14]} 30. Nxd5+ {[%clk 0:00:28]}  Rxd5 {[%clk 0:00:14]} 31. Rxd5 {[%clk 0:00:27]}  exd5 {[%clk 0:00:15]} 32. Rxd5 {[%clk 0:00:27]}  Rc1+ {[%clk 0:00:15]} 33. Kh2 {[%clk 0:00:27]}  Rc2 {[%clk 0:00:15]} 34. Kg3 {[%clk 0:00:27]}  Rb2 {[%clk 0:00:15]} 35. Rd4 {[%clk 0:00:15]}  b5 {[%clk 0:00:13]} 36. axb5 {[%clk 0:00:13]}  axb5 {[%clk 0:00:14]} 37. Kf3 {[%clk 0:00:13]}  Ke6 {[%clk 0:00:14]} 38. g3 {[%clk 0:00:08]}  Rb3+ {[%clk 0:00:14]} 39. Ke2 {[%clk 0:00:08]}  Rb2+ {[%clk 0:00:14]} 40. Ke3 {[%clk 0:00:08]}  g5 {[%clk 0:00:13]} 41. f4 {[%clk 0:00:07]}  f5 {[%clk 0:00:12]} 42. fxg5 {[%clk 0:00:07]}  hxg5 {[%clk 0:00:13]} 43. h4 {[%clk 0:00:08]}  Rb3+ {[%clk 0:00:13]} 44. Kf2 {[%clk 0:00:06]}  Rb2+ {[%clk 0:00:12]} 45. Kf3 {[%clk 0:00:05]}  Rb3+ {[%clk 0:00:13]} 46. Kf2 {[%clk 0:00:04]}  Rb2+ {[%clk 0:00:13]} 47. Ke3 {[%clk 0:00:04]}  Rb3+ {[%clk 0:00:13]} 48. Kf2 {[%clk 0:00:04]} 1/2-1/2

[Event "November 21 Early 2023"]
[Site "https://www.chess.com"]
[Date "2023.11.21"]
[Round "3"]
[White "HeroWilczek"]
[Black "LLariMarc"]
[Result "1-0"]
[Board "206"]
[TimeControl "180+1"]
[WhiteElo "2471"]
[BlackElo "2266"]
[WhiteClock "0:00:06"]
[BlackClock "0:00:03"]

1. e4 {[%clk 0:02:59]}  e6 {[%clk 0:03:00]} 2. d4 {[%clk 0:02:58]}  d5 {[%clk 0:03:01]} 3. Bd3 {[%clk 0:02:57]}  dxe4 {[%clk 0:02:59]} 4. Bxe4 {[%clk 0:02:58]}  Nf6 {[%clk 0:03:00]} 5. Bf3 {[%clk 0:02:57]}  Be7 {[%clk 0:03:00]} 6. Ne2 {[%clk 0:02:57]}  O-O {[%clk 0:03:01]} 7. O-O {[%clk 0:02:57]}  Nbd7 {[%clk 0:03:00]} 8. Nbc3 {[%clk 0:02:52]}  c6 {[%clk 0:02:57]} 9. Bf4 {[%clk 0:02:51]}  Nb6 {[%clk 0:02:57]} 10. Qd2 {[%clk 0:02:50]}  Nbd5 {[%clk 0:02:55]} 11. Bg3 {[%clk 0:02:49]}  b6 {[%clk 0:02:49]} 12. Ne4 {[%clk 0:02:48]}  Nxe4 {[%clk 0:02:49]} 13. Bxe4 {[%clk 0:02:49]}  Bb7 {[%clk 0:02:49]} 14. Rad1 {[%clk 0:02:42]}  Qd7 {[%clk 0:02:48]} 15. c4 {[%clk 0:02:39]}  Nf6 {[%clk 0:02:48]} 16. Bb1 {[%clk 0:02:40]}  Rfd8 {[%clk 0:02:44]} 17. Qc2 {[%clk 0:02:35]}  Qe8 {[%clk 0:02:39]} 18. Nf4 {[%clk 0:02:28]}  c5 {[%clk 0:02:36]} 19. d5 {[%clk 0:02:21]}  exd5 {[%clk 0:02:35]} 20. Nxd5 {[%clk 0:02:17]}  Bxd5 {[%clk 0:02:34]} 21. cxd5 {[%clk 0:02:18]}  Qf8 {[%clk 0:02:28]} 22. Rfe1 {[%clk 0:02:10]}  g6 {[%clk 0:02:24]} 23. Qc4 {[%clk 0:01:40]}  Ne8 {[%clk 0:02:20]} 24. Be5 {[%clk 0:01:33]}  Bf6 {[%clk 0:02:18]} 25. Qf4 {[%clk 0:01:25]}  Bxe5 {[%clk 0:02:18]} 26. Rxe5 {[%clk 0:01:26]}  Nd6 {[%clk 0:02:18]} 27. h4 {[%clk 0:01:24]}  Re8 {[%clk 0:02:16]} 28. Rde1 {[%clk 0:01:18]}  Rad8 {[%clk 0:01:34]} 29. h5 {[%clk 0:01:11]}  Rxe5 {[%clk 0:01:33]} 30. Rxe5 {[%clk 0:01:10]}  b5 {[%clk 0:01:22]} 31. Qg4 {[%clk 0:00:46]}  Qg7 {[%clk 0:01:12]} 32. Re2 {[%clk 0:00:43]}  a5 {[%clk 0:01:06]} 33. hxg6 {[%clk 0:00:41]}  hxg6 {[%clk 0:01:05]} 34. Qg5 {[%clk 0:00:39]}  Rd7 {[%clk 0:00:38]} 35. Qe3 {[%clk 0:00:30]}  Qd4 {[%clk 0:00:17]} 36. Qxd4 {[%clk 0:00:28]}  cxd4 {[%clk 0:00:18]} 37. Bd3 {[%clk 0:00:28]}  Nc4 {[%clk 0:00:17]} 38. b3 {[%clk 0:00:27]}  Na3 {[%clk 0:00:15]} 39. Re5 {[%clk 0:00:18]}  f6 {[%clk 0:00:15]} 40. Re8+ {[%clk 0:00:17]}  Kf7 {[%clk 0:00:15]} 41. Ra8 {[%clk 0:00:17]}  Rxd5 {[%clk 0:00:15]} 42. Rxa5 {[%clk 0:00:18]}  Rc5 {[%clk 0:00:15]} 43. g3 {[%clk 0:00:15]}  Nc2 {[%clk 0:00:13]} 44. Rxb5 {[%clk 0:00:11]}  Rxb5 {[%clk 0:00:13]} 45. Bxb5 {[%clk 0:00:12]}  Nb4 {[%clk 0:00:10]} 46. a3 {[%clk 0:00:10]}  Na2 {[%clk 0:00:10]} 47. Kf1 {[%clk 0:00:09]}  Nc3 {[%clk 0:00:10]} 48. Bd3 {[%clk 0:00:06]}  Ke6 {[%clk 0:00:10]} 49. Ke1 {[%clk 0:00:07]}  Kd5 {[%clk 0:00:11]} 50. Kd2 {[%clk 0:00:07]}  g5 {[%clk 0:00:11]} 51. b4 {[%clk 0:00:06]}  Na4 {[%clk 0:00:09]} 52. Kc2 {[%clk 0:00:07]}  Nc3 {[%clk 0:00:08]} 53. Kb3 {[%clk 0:00:07]}  Nd1 {[%clk 0:00:09]} 54. f4 {[%clk 0:00:06]}  gxf4 {[%clk 0:00:09]} 55. gxf4 {[%clk 0:00:06]}  Ne3 {[%clk 0:00:09]} 56. a4 {[%clk 0:00:07]}  Ng2 {[%clk 0:00:09]} 57. f5 {[%clk 0:00:06]}  Ne1 {[%clk 0:00:09]} 58. Bc4+ {[%clk 0:00:06]}  Kc6 {[%clk 0:00:06]} 59. a5 {[%clk 0:00:05]}  Nf3 {[%clk 0:00:05]} 60. Bd3 {[%clk 0:00:05]}  Ne5 {[%clk 0:00:05]} 61. Kc2 {[%clk 0:00:05]}  Kd5 {[%clk 0:00:04]} 62. a6 {[%clk 0:00:05]}  Nc6 {[%clk 0:00:04]} 63. b5 {[%clk 0:00:04]}  Nb4+ {[%clk 0:00:04]} 64. Kd2 {[%clk 0:00:04]}  Kc5 {[%clk 0:00:03]} 65. a7 {[%clk 0:00:04]}  Nxd3 {[%clk 0:00:02]} 66. Kxd3 {[%clk 0:00:05]}  Kxb5 {[%clk 0:00:02]} 67. a8=Q {[%clk 0:00:06]}  Kb4 {[%clk 0:00:03]} 68. Qf8+ {[%clk 0:00:06]} 1-0

[Event "November 21 Early 2023"]
[Site "https://www.chess.com"]
[Date "2023.11.21"]
[Round "3"]
[White "Tomaszewski, Kacper"]
[Black "Malikova777"]
[Result "1/2-1/2"]
[Board "207"]
[TimeControl "180+1"]
[WhiteFideId "1127373"]
[WhiteElo "2211"]
[BlackElo "2266"]
[WhiteTeam "POL"]
[WhiteClock "0:00:33"]
[BlackClock "0:00:15"]

1. c4 {[%clk 0:03:00]}  Nf6 {[%clk 0:02:59]} 2. Nc3 {[%clk 0:03:00]}  g6 {[%clk 0:03:00]} 3. e4 {[%clk 0:02:58]}  Bg7 {[%clk 0:03:00]} 4. Nf3 {[%clk 0:02:59]}  d6 {[%clk 0:03:00]} 5. d4 {[%clk 0:02:57]}  O-O {[%clk 0:03:00]} 6. Be2 {[%clk 0:02:56]}  Nc6 {[%clk 0:03:01]} 7. O-O {[%clk 0:02:55]}  e5 {[%clk 0:03:02]} 8. dxe5 {[%clk 0:02:52]}  Nxe5 {[%clk 0:02:58]} 9. Nxe5 {[%clk 0:02:50]}  dxe5 {[%clk 0:02:59]} 10. Qxd8 {[%clk 0:02:50]}  Rxd8 {[%clk 0:02:59]} 11. Bg5 {[%clk 0:02:51]}  c6 {[%clk 0:02:57]} 12. f4 {[%clk 0:02:42]}  Re8 {[%clk 0:02:30]} 13. Rad1 {[%clk 0:02:29]}  h6 {[%clk 0:02:19]} 14. fxe5 {[%clk 0:02:27]}  Ng4 {[%clk 0:02:03]} 15. Bf4 {[%clk 0:02:10]}  Nxe5 {[%clk 0:01:43]} 16. Rd6 {[%clk 0:02:05]}  Be6 {[%clk 0:01:34]} 17. c5 {[%clk 0:02:00]}  Nc4 {[%clk 0:01:30]} 18. Rxe6 {[%clk 0:01:57]}  Rxe6 {[%clk 0:01:21]} 19. Bxc4 {[%clk 0:01:56]}  Bxc3 {[%clk 0:01:21]} 20. bxc3 {[%clk 0:01:47]}  Rxe4 {[%clk 0:01:21]} 21. Bd3 {[%clk 0:01:41]}  Ra4 {[%clk 0:01:14]} 22. Bxh6 {[%clk 0:01:39]}  f5 {[%clk 0:01:10]} 23. Rf4 {[%clk 0:01:30]}  Rxf4 {[%clk 0:01:05]} 24. Bxf4 {[%clk 0:01:30]}  Rd8 {[%clk 0:01:05]} 25. Bd6 {[%clk 0:01:29]}  b6 {[%clk 0:01:05]} 26. Bc4+ {[%clk 0:01:28]}  Kh7 {[%clk 0:01:05]} 27. Kf2 {[%clk 0:01:26]}  bxc5 {[%clk 0:01:04]} 28. Bxc5 {[%clk 0:01:26]}  Rd2+ {[%clk 0:01:05]} 29. Kf3 {[%clk 0:01:25]}  a5 {[%clk 0:00:56]} 30. a4 {[%clk 0:01:16]}  Rc2 {[%clk 0:00:47]} 31. Bd4 {[%clk 0:01:14]}  c5 {[%clk 0:00:46]} 32. Be5 {[%clk 0:01:07]}  Rc1 {[%clk 0:00:38]} 33. Bb5 {[%clk 0:01:05]}  g5 {[%clk 0:00:36]} 34. h3 {[%clk 0:01:03]}  Kg6 {[%clk 0:00:36]} 35. Be8+ {[%clk 0:01:03]}  Kh6 {[%clk 0:00:34]} 36. c4 {[%clk 0:00:53]}  Re1 {[%clk 0:00:33]} 37. Bc7 {[%clk 0:00:37]}  Rxe8 {[%clk 0:00:32]} 38. Bxa5 {[%clk 0:00:38]}  Ra8 {[%clk 0:00:32]} 39. Bb6 {[%clk 0:00:38]}  Rxa4 {[%clk 0:00:32]} 40. Bxc5 {[%clk 0:00:38]}  Rxc4 {[%clk 0:00:33]} 41. Bf8+ {[%clk 0:00:39]}  Kg6 {[%clk 0:00:32]} 42. g3 {[%clk 0:00:39]}  Rc3+ {[%clk 0:00:31]} 43. Kg2 {[%clk 0:00:39]}  Rb3 {[%clk 0:00:31]} 44. Be7 {[%clk 0:00:37]}  Kh5 {[%clk 0:00:29]} 45. Bd8 {[%clk 0:00:36]}  g4 {[%clk 0:00:18]} 46. h4 {[%clk 0:00:34]}  Rb2+ {[%clk 0:00:15]} 47. Kg1 {[%clk 0:00:33]}  Rc2 {[%clk 0:00:16]} 48. Bg5 {[%clk 0:00:33]}  Kg6 {[%clk 0:00:13]} 49. Bf4 {[%clk 0:00:33]}  Kf7 {[%clk 0:00:13]} 50. h5 {[%clk 0:00:33]}  Kf6 {[%clk 0:00:13]} 51. Kf1 {[%clk 0:00:32]}  Rh2 {[%clk 0:00:12]} 52. h6 {[%clk 0:00:32]}  Kg6 {[%clk 0:00:13]} 53. Kg1 {[%clk 0:00:32]}  Rxh6 {[%clk 0:00:13]} 54. Bxh6 {[%clk 0:00:32]}  Kxh6 {[%clk 0:00:13]} 55. Kf2 {[%clk 0:00:33]}  Kg5 {[%clk 0:00:14]} 56. Ke3 {[%clk 0:00:33]}  f4+ {[%clk 0:00:14]} 57. gxf4+ {[%clk 0:00:33]}  Kf5 {[%clk 0:00:14]} 58. Ke2 {[%clk 0:00:34]}  Ke4 {[%clk 0:00:14]} 59. Kf2 {[%clk 0:00:31]}  Kxf4 {[%clk 0:00:13]} 60. Kg2 {[%clk 0:00:32]}  g3 {[%clk 0:00:12]} 61. Kg1 {[%clk 0:00:32]}  Kg4 {[%clk 0:00:13]} 62. Kg2 {[%clk 0:00:32]}  Kf4 {[%clk 0:00:14]} 63. Kg1 {[%clk 0:00:33]}  Kf3 {[%clk 0:00:14]} 64. Kf1 {[%clk 0:00:33]}  g2+ {[%clk 0:00:14]} 65. Kg1 {[%clk 0:00:33]}  Kg3 {[%clk 0:00:15]} 1/2-1/2

[Event "November 21 Early 2023"]
[Site "https://www.chess.com"]
[Date "2023.11.21"]
[Round "3"]
[White "Darmanin, Jake"]
[Black "kingapolak"]
[Result "1-0"]
[Board "216"]
[TimeControl "180+1"]
[WhiteFideId "5601061"]
[WhiteElo "2119"]
[BlackElo "2192"]
[WhiteTeam "MLT"]
[WhiteClock "0:00:07"]
[BlackClock "0:00:00"]

1. e4 {[%clk 0:02:13]}  c5 {[%clk 0:02:57]} 2. Nf3 {[%clk 0:02:13]}  Nc6 {[%clk 0:02:56]} 3. c3 {[%clk 0:02:14]}  d5 {[%clk 0:02:47]} 4. exd5 {[%clk 0:02:15]}  Qxd5 {[%clk 0:02:47]} 5. Na3 {[%clk 0:02:15]}  a6 {[%clk 0:02:41]} 6. Be2 {[%clk 0:02:12]}  Nf6 {[%clk 0:02:40]} 7. Nc4 {[%clk 0:02:09]}  Qd8 {[%clk 0:02:39]} 8. a4 {[%clk 0:02:08]}  e6 {[%clk 0:02:27]} 9. a5 {[%clk 0:02:06]}  Be7 {[%clk 0:02:24]} 10. d3 {[%clk 0:02:01]}  Nd5 {[%clk 0:02:16]} 11. O-O {[%clk 0:02:00]}  O-O {[%clk 0:02:15]} 12. Re1 {[%clk 0:01:59]}  Bf6 {[%clk 0:02:14]} 13. Qb3 {[%clk 0:01:56]}  h6 {[%clk 0:02:12]} 14. Rd1 {[%clk 0:01:50]}  Qc7 {[%clk 0:02:10]} 15. g3 {[%clk 0:01:44]}  Re8 {[%clk 0:02:06]} 16. Nb6 {[%clk 0:01:42]}  Nxb6 {[%clk 0:02:04]} 17. axb6 {[%clk 0:01:43]}  Qe7 {[%clk 0:02:04]} 18. Be3 {[%clk 0:01:38]}  e5 {[%clk 0:01:29]} 19. Nd2 {[%clk 0:01:36]}  Nb8 {[%clk 0:01:04]} 20. Qa3 {[%clk 0:01:30]}  Nd7 {[%clk 0:01:03]} 21. Nc4 {[%clk 0:01:29]}  Bg5 {[%clk 0:00:58]} 22. Bxg5 {[%clk 0:01:25]}  Qxg5 {[%clk 0:00:56]} 23. h4 {[%clk 0:01:19]}  Qf6 {[%clk 0:00:56]} 24. Qa5 {[%clk 0:01:14]}  e4 {[%clk 0:00:53]} 25. dxe4 {[%clk 0:01:10]}  Rxe4 {[%clk 0:00:54]} 26. Bd3 {[%clk 0:01:02]}  Re6 {[%clk 0:00:48]} 27. Re1 {[%clk 0:00:58]}  Ne5 {[%clk 0:00:35]} 28. Nxe5 {[%clk 0:00:54]}  Rxe5 {[%clk 0:00:36]} 29. Rxe5 {[%clk 0:00:52]}  Qxe5 {[%clk 0:00:37]} 30. Rd1 {[%clk 0:00:43]}  Bh3 {[%clk 0:00:36]} 31. Bf1 {[%clk 0:00:33]}  Bg4 {[%clk 0:00:27]} 32. Rd4 {[%clk 0:00:23]}  Bf3 {[%clk 0:00:23]} 33. Rf4 {[%clk 0:00:20]}  Bc6 {[%clk 0:00:22]} 34. b4 {[%clk 0:00:20]}  Qd5 {[%clk 0:00:22]} 35. f3 {[%clk 0:00:19]}  Re8 {[%clk 0:00:19]} 36. Qxc5 {[%clk 0:00:19]}  Qd1 {[%clk 0:00:16]} 37. Qf2 {[%clk 0:00:13]}  Re1 {[%clk 0:00:14]} 38. c4 {[%clk 0:00:13]}  Ba4 {[%clk 0:00:03]} 39. Kg2 {[%clk 0:00:11]}  Bc2 {[%clk 0:00:03]} 40. Rd4 {[%clk 0:00:10]}  Qb1 {[%clk 0:00:02]} 41. Rd8+ {[%clk 0:00:09]}  Kh7 {[%clk 0:00:02]} 42. g4 {[%clk 0:00:07]}  Bg6 {[%clk 0:00:01]} 43. h5 {[%clk 0:00:07]}  Bc2 {[%clk 0:00:00]} 44. f4 {[%clk 0:00:07]} 1-0

[Event "November 21 Early 2023"]
[Site "https://www.chess.com"]
[Date "2023.11.21"]
[Round "3"]
[White "LionKing2367890"]
[Black "Szyszylo, Rafal"]
[Result "0-1"]
[Board "219"]
[TimeControl "180+1"]
[BlackFideId "1109626"]
[WhiteElo "2165"]
[BlackElo "1951"]
[BlackTeam "POL"]
[WhiteClock "0:01:24"]
[BlackClock "0:02:46"]

1. e4 {[%clk 0:02:50]}  d6 {[%clk 0:03:00]} 2. d4 {[%clk 0:02:48]}  Nf6 {[%clk 0:03:00]} 3. Nc3 {[%clk 0:02:48]}  g6 {[%clk 0:03:00]} 4. f4 {[%clk 0:02:48]}  Bg7 {[%clk 0:03:00]} 5. Nf3 {[%clk 0:02:48]}  O-O {[%clk 0:03:00]} 6. Bd3 {[%clk 0:02:47]}  Na6 {[%clk 0:03:01]} 7. O-O {[%clk 0:02:47]}  Bg4 {[%clk 0:03:00]} 8. a3 {[%clk 0:02:47]}  c5 {[%clk 0:02:57]} 9. dxc5 {[%clk 0:02:46]}  Nxc5 {[%clk 0:02:56]} 10. e5 {[%clk 0:01:24]}  Nfd7 {[%clk 0:02:46]} 0-1

[Event "November 21 Early 2023"]
[Site "https://www.chess.com"]
[Date "2023.11.21"]
[Round "3"]
[White "Kukreja Sankalp"]
[Black "DonCiao"]
[Result "1-0"]
[Board "226"]
[TimeControl "180+1"]
[WhiteFideId "45027676"]
[WhiteElo "2126"]
[BlackElo "2125"]
[WhiteTeam "IND"]
[WhiteClock "0:01:48"]
[BlackClock "0:00:00"]

1. e4 {[%clk 0:02:57]}  c5 {[%clk 0:02:59]} 2. Nf3 {[%clk 0:02:57]}  Nc6 {[%clk 0:02:59]} 3. d4 {[%clk 0:02:57]}  cxd4 {[%clk 0:02:59]} 4. Nxd4 {[%clk 0:02:58]}  Nf6 {[%clk 0:02:59]} 5. Nc3 {[%clk 0:02:58]}  e5 {[%clk 0:02:59]} 6. Ndb5 {[%clk 0:02:58]}  d6 {[%clk 0:02:59]} 7. Bg5 {[%clk 0:02:58]}  a6 {[%clk 0:02:59]} 8. Na3 {[%clk 0:02:58]}  b5 {[%clk 0:02:59]} 9. Bxf6 {[%clk 0:02:58]}  gxf6 {[%clk 0:02:58]} 10. Nd5 {[%clk 0:02:58]}  f5 {[%clk 0:02:58]} 11. Bd3 {[%clk 0:02:56]}  Be6 {[%clk 0:02:58]} 12. O-O {[%clk 0:02:56]}  Bxd5 {[%clk 0:02:54]} 13. exd5 {[%clk 0:02:55]}  Ne7 {[%clk 0:02:54]} 14. c4 {[%clk 0:02:55]}  e4 {[%clk 0:02:45]} 15. Be2 {[%clk 0:02:47]}  Bg7 {[%clk 0:02:44]} 16. Rb1 {[%clk 0:02:19]}  O-O {[%clk 0:02:36]} 17. cxb5 {[%clk 0:02:18]}  axb5 {[%clk 0:02:32]} 18. Nxb5 {[%clk 0:02:18]}  Rxa2 {[%clk 0:02:29]} 19. Qb3 {[%clk 0:02:17]}  Ra5 {[%clk 0:02:22]} 20. Qb4 {[%clk 0:02:16]}  Nxd5 {[%clk 0:02:14]} 21. Qxd6 {[%clk 0:02:15]}  Qxd6 {[%clk 0:02:03]} 22. Nxd6 {[%clk 0:02:16]}  Nf4 {[%clk 0:02:01]} 23. Bc4 {[%clk 0:02:13]}  Be5 {[%clk 0:01:38]} 24. Nxf5 {[%clk 0:02:11]}  Nd3 {[%clk 0:01:27]} 25. Bxd3 {[%clk 0:02:05]}  exd3 {[%clk 0:01:27]} 26. Rfd1 {[%clk 0:02:03]}  Rd8 {[%clk 0:01:21]} 27. Ne7+ {[%clk 0:02:03]}  Kf8 {[%clk 0:01:17]} 28. Nc6 {[%clk 0:02:03]}  Rad5 {[%clk 0:01:13]} 29. Nxd8 {[%clk 0:02:03]}  Rxd8 {[%clk 0:01:12]} 30. b4 {[%clk 0:02:04]}  Bc3 {[%clk 0:01:11]} 31. b5 {[%clk 0:02:04]}  d2 {[%clk 0:01:07]} 32. b6 {[%clk 0:02:04]}  Rb8 {[%clk 0:01:05]} 33. Rb3 {[%clk 0:02:03]}  Ba5 {[%clk 0:01:04]} 34. Ra3 {[%clk 0:02:03]}  Bxb6 {[%clk 0:01:02]} 35. Rxd2 {[%clk 0:02:02]}  Bc5 {[%clk 0:00:51]} 36. Ra1 {[%clk 0:01:57]}  Kg7 {[%clk 0:00:47]} 37. g3 {[%clk 0:01:56]}  Kg6 {[%clk 0:00:44]} 38. Kg2 {[%clk 0:01:55]}  f6 {[%clk 0:00:44]} 39. Rc2 {[%clk 0:01:55]}  Bd4 {[%clk 0:00:43]} 40. Ra4 {[%clk 0:01:55]}  Be5 {[%clk 0:00:42]} 41. f4 {[%clk 0:01:54]}  Bb2 {[%clk 0:00:41]} 42. Rc5 {[%clk 0:01:52]}  h5 {[%clk 0:00:39]} 43. Kf3 {[%clk 0:01:52]}  Rb3+ {[%clk 0:00:37]} 44. Ke4 {[%clk 0:01:51]}  Rb6 {[%clk 0:00:30]} 45. Raa5 {[%clk 0:01:49]}  h4 {[%clk 0:00:29]} 46. gxh4 {[%clk 0:01:48]}  Rb4+ {[%clk 0:00:21]} 47. Kf3 {[%clk 0:01:48]}  Bd4 {[%clk 0:00:20]} 48. Rd5 {[%clk 0:01:47]}  Bg1 {[%clk 0:00:19]} 49. Kg4 {[%clk 0:01:47]}  Bxh2 {[%clk 0:00:18]} 50. h5+ {[%clk 0:01:47]}  Kh6 {[%clk 0:00:15]} 51. Rf5 {[%clk 0:01:47]}  Kg7 {[%clk 0:00:14]} 52. Ra7+ {[%clk 0:01:47]}  Kf8 {[%clk 0:00:12]} 53. Rxf6+ {[%clk 0:01:48]}  Ke8 {[%clk 0:00:12]} 54. h6 {[%clk 0:01:48]}  Rb1 {[%clk 0:00:08]} 55. h7 {[%clk 0:01:48]}  Rg1+ {[%clk 0:00:00]} 56. Kf5 {[%clk 0:01:48]} 1-0